bitfinex-derivatives/quotes_ETHF0:USTF0_20240920
["timestamp","ask_amount","ask_price","bid_price","bid_amount"]
[1726801685729,0.40652,2459.5,2459.4,0.42]
[1726801686028,3.17,2459.8,2458.9,4.0013]
[1726801686225,0.80034,2459.4,2459.0,0.83169]
[1726801686734,0.80034,2459.4,2459.0,0.4251]
[1726801686920,0.80034,2459.4,2459.0,0.8317]
[1726801688226,3.5638,2459.4,2459.0,0.4251]
[1726801688434,0.40658,2459.2,2459.0,0.4251]
[1726801688734,0.4066,2459.0,2458.7,0.81604]
[1726801689030,7.3078,2459.3,2458.8,0.40664]
[1726801689235,0.4066,2459.1,2458.7,1.23004]
[1726801689727,0.40661,2459.0,2458.7,0.8234]
[1726801690035,0.40659,2459.1,2458.7,1.23004]
[1726801690630,4.1,2459.3,2458.7,0.8234]
[1726801690823,0.40661,2459.0,2458.7,0.8234]
[1726801691027,4.18645,2459.2,2458.7,0.414]
[1726801691231,0.40663,2458.9,2458.7,0.414]
[1726801691535,0.40661,2459.0,2458.7,0.414]
[1726801691841,0.40662,2458.9,2458.7,0.414]
[1726801692030,7.3078,2459.3,2458.7,0.414]
[1726801692236,0.4066,2459.1,2458.7,0.82064]
[1726801692533,0.4066,2459.1,2458.8,0.40663]
[1726801693134,7.3078,2459.3,2458.8,0.40663]
[1726801693331,0.80034,2459.4,2459.0,3.17]
[1726801693841,0.80034,2459.4,2459.1,0.40657]
[1726801694130,7.3034,2459.6,2459.2,3.17]
[1726801694334,7.3034,2459.6,2459.4,0.40653]
[1726801694335,3.2078,2459.6,2459.4,0.40653]
[1726801694531,3.2078,2459.6,2459.3,0.3958]
[1726801694532,0.40653,2459.5,2459.3,0.3958]
[1726801694837,3.2078,2459.6,2459.2,0.4179]
[1726801694838,0.40654,2459.4,2459.2,0.4179]
[1726801695029,0.4084,2459.4,2459.2,0.4179]
[1726801695336,0.40655,2459.3,2458.9,0.40661]
[1726801695529,0.4084,2459.4,2459.0,0.4066]
[1726801695727,0.81494,2459.4,2459.0,0.4066]
[1726801695935,0.81494,2459.4,2459.1,0.40659]
[1726801696130,0.81494,2459.4,2459.2,0.3942]
[1726801696533,0.4084,2459.4,2459.2,0.3942]
[1726801696923,3.2078,2459.6,2459.2,3.5642]
[1726801697127,3.2078,2459.6,2459.3,0.80335]
[1726801697831,3.2078,2459.6,2459.3,0.3968]
[1726801698234,0.40649,2459.7,2459.3,0.3968]
[1726801698431,0.4084,2459.8,2459.4,3.17]
[1726801698637,0.4084,2459.8,2459.6,0.4065]
[1726801698836,0.4084,2459.8,2459.7,0.4099]
[1726801699239,4.474,2459.8,2459.1,0.3996]
[1726801699441,0.4065,2459.7,2459.3,0.40655]
[1726801699735,0.4084,2459.8,2459.3,0.40655]
[1726801699736,0.4065,2459.6,2459.3,0.40655]
[1726801700037,0.4065,2459.7,2459.3,0.40655]
[1726801700634,0.4065,2459.7,2459.2,0.4099]
[1726801700635,0.81488,2459.8,2459.2,3.5799]
[1726801700938,3.2078,2460.1,2459.6,6.3778]
[1726801701146,0.4106,2460.4,2459.9,6.3778]
[1726801701338,0.4106,2460.4,2460.1,3.17]
[1726801701636,0.40639,2460.3,2460.0,0.40643]
[1726801702133,0.81698,2460.4,2460.0,0.40643]
[1726801703041,0.81698,2460.4,2460.1,0.40642]
[1726801704436,0.4106,2460.4,2459.9,3.2078]
[1726801704641,0.4106,2460.4,2460.3,0.40639]
[1726801705246,4.41393,2460.7,2460.4,0.40636]
[1726801705443,4.41393,2460.7,2460.2,3.2078]
[1726801705444,0.7998,2460.7,2460.2,3.2078]
[1726801705743,0.7998,2460.7,2460.5,0.40635]
[1726801705944,0.3886,2460.7,2460.5,0.40635]
[1726801706139,3.663,2460.9,2460.3,0.4019]
[1726801706140,3.663,2460.9,2460.3,3.5719]
[1726801706339,4.0693,2460.9,2460.3,3.5719]
[1726801706642,4.0693,2460.9,2460.6,0.40634]
[1726801707040,4.121,2461.2,2460.9,0.40628]
[1726801707241,4.121,2461.2,2460.8,3.17]
[1726801707242,0.7978,2461.4,2460.8,6.3778]
[1726801707445,0.7978,2461.4,2461.0,3.17]
[1726801707635,0.3899,2461.4,2461.2,0.40623]
[1726801708437,0.79611,2461.4,2461.0,0.40627]
[1726801708645,0.40622,2461.3,2460.9,1.63978]
[1726801709441,0.40624,2461.2,2460.9,1.63978]
[1726801709639,0.3899,2461.4,2460.9,1.63978]
[1726801709640,0.40623,2461.3,2460.9,1.63978]
[1726801710348,0.3899,2461.4,2461.0,3.57626]
[1726801710645,0.79611,2461.4,2461.0,3.57626]
[1726801711747,0.3899,2461.4,2461.1,0.40625]
[1726801713135,0.3899,2461.4,2461.2,0.40623]
[1726801713342,4.0699,2461.6,2461.0,3.17]
[1726801713544,4.0699,2461.6,2461.2,0.40623]
[1726801713846,4.47608,2461.6,2461.2,0.40623]
[1726801714146,4.47608,2461.6,2461.0,3.17]
[1726801714147,0.81407,2461.6,2461.3,0.40622]
[1726801714349,0.81407,2461.6,2461.0,3.17]
[1726801714350,0.4079,2461.6,2461.0,3.17]
[1726801714541,0.81407,2461.6,2461.3,0.40621]
[1726801714741,0.82225,2461.8,2461.4,0.40619]
[1726801715043,0.4161,2461.8,2461.4,0.4062]
[1726801715347,0.4161,2461.8,2461.5,0.79469]
[1726801715647,0.82225,2461.8,2461.5,0.3885]
[1726801715850,0.40616,2461.7,2461.5,0.3885]
[1726801716048,0.82225,2461.8,2461.5,0.3885]
[1726801717544,0.40616,2461.7,2461.5,0.3885]
[1726801718247,0.4161,2461.8,2461.5,0.3885]
[1726801718647,0.4161,2461.8,2461.5,0.79468]
[1726801718847,0.82224,2461.8,2461.5,0.79468]
[1726801719247,0.82224,2461.8,2461.5,0.3885]
[1726801720150,0.4161,2461.8,2461.5,0.79468]
[1726801721251,0.4161,2461.8,2461.6,0.40617]
[1726801723445,0.4161,2461.8,2461.5,0.3885]
[1726801723446,0.4161,2461.8,2461.7,0.40616]
[1726801723749,0.4161,2461.8,2461.6,1.21657]
[1726801724744,0.4161,2461.8,2461.7,0.40616]
[1726801725247,4.01702,2462.0,2461.8,0.40613]
[1726801725248,3.2078,2462.0,2461.8,0.40613]
[1726801725448,3.61391,2462.0,2461.7,0.40615]
[1726801725655,0.40612,2461.9,2461.6,1.21657]
[1726801725952,7.3288,2462.3,2461.7,3.17]
[1726801726154,0.40608,2462.2,2461.9,3.57612]
[1726801726455,4.009,2462.4,2462.0,0.4241]
[1726801726456,0.40607,2462.3,2462.0,0.4241]
[1726801726643,0.40608,2462.2,2462.0,0.4241]
[1726801727255,0.40607,2462.3,2462.0,0.83021]
[1726801727556,0.40612,2461.9,2461.6,0.8104]
[1726801727747,4.18515,2462.3,2461.7,0.40616]
[1726801727748,0.4035,2461.8,2461.7,0.40616]
[1726801728446,0.4035,2461.8,2461.6,1.21657]
[1726801728850,0.80965,2461.8,2461.5,0.83029]
[1726801729157,0.4035,2461.8,2461.5,0.83028]
[1726801729348,0.80964,2461.8,2461.5,0.83028]
[1726801729848,0.80964,2461.8,2461.6,0.40617]
[1726801729849,0.4035,2461.8,2461.6,0.40617]
[1726801730042,0.80964,2461.8,2461.5,3.5941]
[1726801730243,0.4035,2461.8,2461.5,0.4241]
[1726801730544,0.40618,2461.6,2461.2,1.21373]
[1726801730749,3.6113,2461.8,2461.2,1.21374]
[1726801730956,0.40617,2461.6,2461.2,1.21374]
[1726801731451,3.6113,2461.8,2461.2,0.8075]
[1726801731653,0.40617,2461.7,2461.2,1.21373]
[1726801732054,0.4062,2461.5,2461.1,3.562]
[1726801732252,3.6113,2461.8,2461.1,0.392]
[1726801732448,0.40623,2461.3,2460.7,7.19]
[1726801732664,0.8158,2461.2,2460.8,0.3919]
[1726801733258,0.8158,2461.2,2460.9,0.40628]
[1726801733959,0.8158,2461.2,2460.8,0.7982]
[1726801734253,0.8158,2461.2,2460.8,0.3919]
[1726801734448,0.8158,2461.2,2460.8,0.7982]
[1726801734651,0.8158,2461.2,2460.8,0.3919]
[1726801735359,0.8158,2461.2,2460.9,3.17]
[1726801735854,3.95919,2461.5,2461.0,0.40627]
[1726801736160,3.553,2461.5,2461.0,0.40627]
[1726801736656,3.553,2462.1,2461.3,3.17]
[1726801736963,3.553,2462.1,2461.4,0.4224]
[1726801736964,0.4277,2461.8,2461.4,0.4224]
[1726801737161,0.83385,2461.8,2461.4,0.4224]
[1726801737656,0.40616,2461.7,2461.4,0.4224]
[1726801737961,0.40617,2461.7,2461.4,0.4224]
[1726801738450,0.83385,2461.8,2461.4,0.82861]
[1726801738649,0.40616,2461.7,2461.4,0.4224]
[1726801739559,0.40617,2461.6,2461.4,0.4224]
[1726801739758,0.40617,2461.7,2461.4,0.4224]
[1726801740257,0.4277,2461.8,2461.4,0.4224]
[1726801740571,3.9482,2462.0,2461.5,6.3778]
[1726801740753,3.553,2462.0,2461.9,0.40612]
[1726801740953,0.4148,2462.4,2462.1,0.40609]
[1726801740954,0.82084,2462.4,2462.1,0.40609]
[1726801741155,0.82084,2462.4,2462.2,3.17]
[1726801741156,0.4148,2462.4,2462.2,3.17]
[1726801741360,0.4148,2462.4,2462.2,3.57607]
[1726801741658,0.4077,2462.5,2462.2,3.17]
[1726801741861,0.81373,2462.5,2462.2,3.17]
[1726801742061,0.40605,2462.4,2462.1,0.4002]
[1726801742358,0.40608,2462.2,2462.0,0.3979]
[1726801742561,3.17,2462.3,2461.7,0.40615]
[1726801742860,0.8209,2462.1,2461.7,0.40615]
[1726801743361,0.8209,2462.1,2461.6,3.97407]
[1726801743761,0.3959,2462.0,2461.7,0.40615]
[1726801746960,0.40613,2461.9,2461.6,3.6057]
[1726801747161,0.40613,2461.9,2461.6,0.3979]
[1726801747355,0.3959,2462.0,2461.6,0.3979]
[1726801747559,0.80201,2462.0,2461.6,3.97407]
[1726801747861,0.40613,2461.9,2461.6,3.5679]
[1726801748060,0.40614,2461.8,2461.6,3.5679]
[1726801748367,0.40614,2461.8,2461.6,0.3979]
[1726801748565,6.7737,2462.0,2461.3,3.2078]
[1726801748767,0.4062,2461.5,2461.3,3.2078]
[1726801748964,3.2078,2461.7,2461.1,0.80045]
[1726801749166,0.82201,2461.4,2461.1,0.3942]
[1726801749467,0.82201,2461.4,2461.1,0.80045]
[1726801749656,0.82201,2461.4,2461.1,0.3942]
[1726801749862,0.4158,2461.4,2461.1,0.80045]
[1726801750165,0.82202,2461.4,2461.1,0.80045]
[1726801751267,0.4158,2461.4,2461.1,0.80045]
[1726801751874,0.82201,2461.4,2461.1,0.80045]
[1726801752266,0.82201,2461.4,2461.1,0.3942]
[1726801752267,0.4158,2461.4,2461.1,0.3942]
[1726801752572,0.40627,2461.0,2460.7,0.40631]
[1726801752765,0.40627,2461.0,2460.7,0.81661]
[1726801752960,6.7936,2461.4,2460.9,0.40628]
[1726801753157,0.40626,2461.1,2460.8,3.9895]
[1726801753362,0.40625,2461.2,2460.9,0.40629]
[1726801753558,0.40625,2461.2,2460.8,3.9895]
[1726801753971,0.40626,2461.1,2460.8,3.9895]
[1726801754862,3.6236,2461.4,2460.8,3.17]
[1726801754863,0.40628,2461.0,2460.8,3.17]
[1726801755059,0.40629,2460.9,2460.7,0.4103]
[1726801755865,0.3923,2461.0,2460.7,0.4103]
[1726801756175,11.0018,2461.5,2460.8,3.17]
[1726801756471,0.40624,2461.2,2460.9,4.00548]
[1726801756672,0.40624,2461.2,2460.9,4.39168]
[1726801757874,0.40623,2461.3,2460.9,4.39168]
[1726801758171,0.40624,2461.2,2460.9,4.39168]
[1726801758667,3.17,2461.4,2460.9,3.594]
[1726801758869,0.8133,2461.3,2460.7,0.81661]
[1726801759265,0.40628,2461.0,2460.7,0.81661]
[1726801760068,0.3917,2461.1,2460.8,0.40629]
[1726801760268,0.79796,2461.1,2460.8,0.40629]
[1726801761064,3.2078,2461.2,2460.9,3.17]
[1726801761270,0.40624,2461.2,2460.9,3.17]
[1726801761467,0.40624,2461.2,2460.9,3.57628]
[1726801762173,0.40624,2461.2,2460.9,3.98748]
[1726801763174,0.40624,2461.3,2461.0,0.40627]
[1726801763375,0.40624,2461.3,2461.0,0.80747]
[1726801764074,0.40624,2461.2,2461.0,0.80747]
[1726801764469,0.40623,2461.3,2461.0,0.4012]
[1726801764775,0.40623,2461.3,2461.0,0.80746]
[1726801765677,0.40624,2461.2,2461.0,0.80746]
[1726801765980,0.40624,2461.2,2461.0,0.4012]
[1726801767971,0.3917,2461.4,2461.3,0.40622]
[1726801768174,4.121,2461.8,2461.7,0.40616]
[1726801770076,4.121,2461.8,2461.6,3.57616]
[1726801773075,4.121,2461.8,2461.6,0.40616]
[1726801773876,0.40613,2461.9,2461.6,0.40616]
[1726801775084,0.40614,2461.8,2461.6,0.40616]
[1726801775471,0.40614,2461.8,2461.5,0.405]
[1726801775669,0.40613,2461.9,2461.6,0.40617]
[1726801775873,0.40614,2461.8,2461.6,0.40617]
[1726801776078,3.17,2461.7,2461.2,0.40623]
[1726801776280,3.17,2461.7,2461.2,0.79933]
[1726801776281,0.4062,2461.5,2461.2,0.79933]
[1726801776781,0.7935,2461.6,2461.2,0.3931]
[1726801777085,0.40627,2461.1,2460.9,1.23089]
[1726801777377,0.40627,2461.1,2460.9,1.63529]
[1726801777579,0.80355,2461.2,2460.9,1.229]
[1726801777782,0.80355,2461.2,2460.9,1.63528]
[1726801778492,0.80355,2461.2,2461.0,0.40626]
[1726801778885,0.80355,2461.2,2460.9,1.63528]
[1726801779083,0.80355,2461.2,2461.0,0.40627]
[1726801779284,0.3973,2461.2,2461.0,0.40627]
[1726801779480,0.3973,2461.2,2461.1,0.40626]
[1726801779680,0.40624,2461.2,2461.0,0.40627]
[1726801780684,0.40624,2461.2,2460.9,1.63528]
[1726801781488,0.40624,2461.2,2461.0,0.40627]
[1726801781882,0.40624,2461.2,2460.9,1.229]
[1726801781883,0.40622,2461.4,2461.1,0.40625]
[1726801782179,0.7824,2461.5,2460.9,1.229]
[1726801782380,0.3906,2461.5,2460.9,1.229]
[1726801782582,0.79681,2461.5,2461.2,0.40623]
[1726801782781,0.40621,2461.4,2461.2,0.40623]
[1726801782983,0.40621,2461.4,2461.1,0.40625]
[1726801783182,0.3906,2461.5,2461.3,0.40622]
[1726801783382,0.79679,2461.5,2461.4,0.41]
[1726801783593,0.3906,2461.5,2461.4,0.41]
[1726801783894,0.79679,2461.5,2461.4,0.41]
[1726801785189,4.453,2461.5,2460.9,0.8246]
[1726801785390,0.3906,2461.5,2461.0,0.40626]
[1726801785796,0.40624,2461.3,2461.0,0.40626]
[1726801787596,0.3906,2461.5,2460.9,1.2346]
[1726801787893,0.40622,2461.4,2460.9,1.2346]
[1726801788096,0.3906,2461.5,2460.9,1.2346]
[1726801788493,0.40621,2461.4,2461.1,0.40624]
[1726801788692,0.40621,2461.4,2460.9,1.2346]
[1726801788894,0.3906,2461.5,2460.9,1.2346]
[1726801789194,0.40621,2461.4,2461.1,0.40624]
[1726801789591,0.40622,2461.3,2461.1,0.40624]
[1726801789794,0.40621,2461.4,2461.1,0.40624]
[1726801790197,0.40621,2461.4,2461.2,0.40624]
[1726801791299,0.40621,2461.4,2460.9,4.4046]
[1726801791496,0.4187,2461.3,2460.9,0.41]
[1726801791696,0.40627,2461.0,2460.8,3.2078]
[1726801792001,5.00931,2461.3,2460.8,3.6141]
[1726801792206,0.40627,2461.1,2460.8,3.6141]
[1726801792499,5.00931,2461.3,2460.8,3.2078]
[1726801792702,0.81048,2461.0,2460.8,3.2078]
[1726801793698,0.4042,2461.0,2460.8,3.6141]
[1726801794201,0.81047,2461.0,2460.8,3.2078]
[1726801795194,0.40629,2460.9,2460.8,3.2078]
[1726801795500,0.81048,2461.0,2460.8,3.2078]
[1726801796693,0.40629,2460.9,2460.8,3.2078]
[1726801797298,0.4042,2461.0,2460.8,3.2078]
[1726801797597,0.40629,2460.9,2460.8,3.2078]
[1726801798193,0.40632,2460.7,2460.4,0.40636]
[1726801798399,0.40633,2460.7,2460.4,0.40637]
[1726801798600,0.4248,2460.6,2460.3,3.6282]
[1726801798802,0.4248,2460.6,2460.4,0.40637]
[1726801799000,0.4248,2460.6,2460.3,3.6282]
[1726801799199,0.4248,2460.6,2460.5,0.40636]
[1726801799392,0.4248,2460.6,2460.3,3.6282]
[1726801799393,4.121,2461.1,2460.4,7.234]
[1726801799598,4.121,2461.1,2460.7,3.57631]
[1726801799599,0.40628,2461.0,2460.7,3.57631]
[1726801799800,0.40628,2461.0,2460.8,0.8267]
[1726801800301,0.40628,2461.0,2460.8,0.4204]
[1726801800502,0.4248,2461.1,2460.8,0.4204]
[1726801800696,0.40626,2461.1,2460.9,0.40629]
[1726801800897,0.4246,2461.3,2460.9,1.24248]
[1726801801205,0.40626,2461.1,2460.9,0.8362]
[1726801801398,0.4246,2461.3,2460.9,1.24249]
[1726801801399,0.40625,2461.2,2460.9,1.24249]
[1726801801702,0.40626,2461.1,2460.9,0.8362]
[1726801802003,0.40629,2460.9,2460.8,0.4204]
[1726801804299,0.40629,2460.9,2460.1,0.40642]
[1726801804300,1.01581,2460.7,2460.1,0.40642]
[1726801804504,1.01581,2460.7,2460.2,0.4082]
[1726801804505,0.40639,2460.3,2460.2,0.4082]
[1726801804700,0.40638,2460.4,2460.2,0.4082]
[1726801805010,0.40639,2460.3,2460.0,0.3994]
[1726801805304,3.17,2460.3,2459.9,0.4082]
[1726801805505,0.3973,2460.2,2459.9,0.4082]
[1726801805802,0.40643,2460.1,2459.9,0.4082]
[1726801806008,0.3973,2460.2,2459.9,0.4082]
[1726801806305,0.4218,2460.1,2459.8,0.40646]
[1726801806506,0.4218,2460.1,2459.7,0.4082]
[1726801806697,0.40646,2459.9,2459.7,0.4082]
[1726801807200,0.4218,2460.1,2459.3,4.01374]
[1726801807201,3.57649,2459.8,2459.3,4.01374]
[1726801807405,0.4109,2459.7,2459.3,4.01374]
[1726801807597,0.81739,2459.7,2459.3,4.01374]
[1726801808094,0.81739,2459.7,2459.3,3.61434]
[1726801808299,0.82301,2459.6,2459.3,3.2078]
[1726801808501,0.40652,2459.5,2459.3,3.2078]
[1726801810096,0.40654,2459.4,2459.3,3.2078]
[1726801810499,0.40653,2459.5,2459.3,3.2078]
[1726801811603,0.40654,2459.4,2459.3,3.2078]
[1726801811905,0.40653,2459.5,2459.3,3.2078]
[1726801813207,0.40654,2459.4,2459.3,3.2078]
[1726801814698,3.57654,2459.4,2459.3,3.2078]
[1726801814900,3.17,2459.4,2459.3,3.2078]
[1726801815101,0.40653,2459.5,2459.3,3.2078]
[1726801815804,0.40654,2459.4,2459.3,3.2078]
[1726801816307,0.40653,2459.5,2459.3,3.2078]
[1726801816505,3.92753,2459.5,2459.3,3.2078]
[1726801816907,0.40654,2459.4,2459.3,3.2078]
[1726801820606,3.57654,2459.4,2459.3,3.2078]
[1726801821112,0.40656,2459.3,2459.0,0.8228]
[1726801822117,0.40658,2459.2,2459.0,0.4162]
[1726801822315,0.40659,2459.1,2459.0,0.4162]
[1726801822613,0.40658,2459.2,2458.9,0.82891]
[1726801823407,3.17,2459.4,2459.0,0.40659]
[1726801823613,0.40657,2459.2,2459.0,0.40659]
[1726801824820,0.40656,2459.3,2459.0,0.4066]
[1726801825413,3.17,2459.4,2459.0,0.4066]
[1726801825414,0.40657,2459.2,2459.0,0.4066]
[1726801828920,0.79286,2459.3,2459.0,0.4066]
[1726801829112,0.40657,2459.2,2459.0,0.4066]
[1726801829610,3.17,2459.4,2458.9,3.6301]
[1726801829611,0.40655,2459.4,2458.9,3.6301]
[1726801829811,16.974,2460.4,2459.2,6.3778]
[1726801829812,4.121,2459.8,2459.2,6.3778]
[1726801830017,3.57646,2459.9,2459.6,0.40649]
[1726801830319,0.40648,2459.8,2459.4,0.4102]
[1726801830519,0.79278,2459.8,2459.5,0.40652]
[1726801830722,0.40649,2459.7,2459.4,0.81673]
[1726801830910,0.79278,2459.8,2459.4,0.81673]
[1726801831113,0.79278,2459.8,2459.5,0.40652]
[1726801831523,0.3863,2459.8,2459.5,0.40652]
[1726801831725,0.3863,2459.8,2459.6,0.4065]
[1726801832420,0.3863,2459.8,2459.7,0.40649]
[1726801832618,0.3863,2459.8,2459.6,0.4065]
[1726801837420,0.79277,2459.8,2459.5,0.40651]
[1726801837622,0.3863,2459.8,2459.6,0.4065]
[1726801838412,0.79277,2459.8,2459.6,0.4065]
[1726801838618,3.17,2459.7,2459.4,3.618]
[1726801838814,3.57654,2459.5,2458.9,3.2078]
[1726801839017,3.17,2459.2,2459.1,0.40659]
[1726801839520,0.8311,2459.7,2459.0,0.3894]
[1726801839720,3.57653,2459.5,2459.3,0.40655]
[1726801839927,3.57653,2459.5,2459.2,0.40656]
[1726801840126,3.17,2459.3,2459.0,0.3894]
[1726801840331,3.17,2459.1,2458.9,4.40962]
[1726801840518,3.57659,2459.1,2458.9,0.7952]
[1726801840719,3.17,2459.1,2458.9,0.7952]
[1726801841420,3.17,2459.1,2458.9,1.20182]
[1726801842227,3.57659,2459.1,2458.9,0.3944]
[1726801843124,0.4066,2459.0,2458.9,0.3944]
[1726801843318,0.4066,2459.0,2458.6,0.40666]
[1726801843319,0.40661,2459.0,2458.6,0.40666]
[1726801843518,3.17,2458.8,2458.6,0.40666]
[1726801844533,3.17,2458.8,2458.5,0.3925]
[1726801844726,0.4052,2458.9,2458.7,0.40664]
[1726801845228,3.5926,2459.2,2458.6,3.2078]
[1726801845422,3.17,2459.2,2458.9,0.40661]
[1726801845624,3.17,2459.2,2459.0,1.2373]
[1726801846019,3.17,2459.2,2459.0,0.8307]
[1726801847329,3.2078,2459.5,2459.3,0.40655]
[1726801847527,6.3778,2459.5,2459.3,0.40655]
[1726801847935,3.17,2459.5,2459.3,0.40655]
[1726801852628,3.57652,2459.5,2459.2,0.40656]
[1726801852833,3.57652,2459.5,2459.2,0.40657]
[1726801853332,3.57652,2459.5,2459.3,0.40655]
[1726801854029,3.17,2459.5,2459.1,0.409]
[1726801854239,3.17,2459.3,2459.2,0.40657]
[1726801854425,3.17,2459.3,2459.0,0.8307]
[1726801854426,3.17,2459.3,2459.1,0.40658]
[1726801854625,3.17,2459.3,2459.2,0.40657]
[1726801855727,0.4253,2459.4,2459.3,0.40655]
[1726801861528,3.9846,2459.7,2459.4,0.40654]
[1726801861737,3.9846,2459.7,2459.0,5.08954677]
[1726801861738,0.40651,2459.6,2459.3,0.40655]
[1726801863838,0.40651,2459.6,2459.4,0.40654]
[1726801865337,3.9745,2459.7,2459.6,0.4065]
[1726801865338,0.3964,2459.7,2459.6,0.4065]
[1726801865730,4.121,2460.1,2459.6,4.0656]
[1726801866037,0.4005,2460.1,2459.9,0.40645]
[1726801866235,0.80692,2460.1,2459.9,0.40645]
[1726801866539,0.4005,2460.1,2459.9,0.40645]
[1726801866946,0.4005,2460.1,2460.0,0.40644]
[1726801867242,7.3288,2460.5,2460.4,0.40637]
[1726801867438,7.3288,2460.5,2459.8,3.17]
[1726801867439,0.7889,2460.8,2460.2,3.2078]
[1726801867735,3.17,2460.5,2460.3,0.8095]
[1726801867931,0.40637,2460.4,2460.2,3.2078]
[1726801868135,0.3884,2460.3,2460.2,3.2078]
[1726801868333,0.8124,2460.3,2460.2,3.2078]
[1726801868943,0.8124,2460.3,2460.2,3.61421]
[1726801869243,3.17,2460.7,2460.5,0.40635]
[1726801869543,3.594,2460.7,2460.5,0.40635]
[1726801870437,3.594,2460.7,2460.2,3.2078]
[1726801870646,3.594,2460.7,2460.5,0.40634]
[1726801871141,3.594,2460.7,2460.5,0.40635]
[1726801871848,0.424,2460.7,2460.6,0.40634]
[1726801872037,0.424,2460.7,2460.6,0.80974]
[1726801872645,0.424,2460.7,2460.6,4.87374]
[1726801872848,4.121,2461.1,2461.0,0.40627]
[1726801873138,6.805,2461.5,2460.6,10.4674]
[1726801873139,0.8229,2461.4,2460.9,3.2078]
[1726801873541,0.8229,2461.4,2461.3,0.40622]
[1726801873740,4.5163,2461.7,2461.4,0.4062]
[1726801873741,7.291,2461.7,2461.4,0.4062]
[1726801873945,3.17,2461.7,2461.3,0.40622]
[1726801874142,3.57616,2461.7,2461.2,0.40623]
[1726801874342,3.17,2461.5,2461.2,0.40623]
[1726801874944,3.17,2461.5,2461.3,0.40622]
[1726801875946,3.17,2461.5,2461.2,0.40623]
[1726801878153,3.17,2461.5,2461.1,3.6112]
[1726801878350,3.17,2461.5,2461.2,0.40624]
[1726801879547,3.17,2461.3,2461.1,3.2078]
[1726801879856,0.8323,2461.2,2460.8,3.5947]
[1726801880147,3.17,2460.9,2460.8,3.2078]
[1726801880342,3.17,2460.9,2460.6,0.40634]
[1726801880538,3.17,2460.9,2460.5,3.2078]
[1726801880745,3.17,2460.9,2460.6,0.40633]
[1726801881351,3.17,2460.9,2460.6,0.40634]
[1726801882343,3.57629,2460.9,2460.5,3.61415]
[1726801882547,3.17,2460.7,2460.5,3.2078]
[1726801882749,0.82514,2460.6,2460.5,3.2078]
[1726801882942,0.8079,2460.6,2460.1,3.2078]
[1726801883137,3.17,2460.3,2460.1,3.61422]
[1726801883750,3.17,2460.3,2460.1,3.2078]
[1726801883938,3.17,2460.3,2460.1,3.61422]
[1726801884545,3.17,2460.3,2460.1,3.2078]
[1726801885450,3.57639,2460.3,2460.1,3.2078]
[1726801885651,3.17,2460.3,2460.1,3.2078]
[1726801885852,3.17,2460.3,2460.1,3.61422]
[1726801888158,3.57639,2460.3,2460.1,3.2078]
[1726801888356,0.40641,2460.2,2460.1,3.2078]
[1726801888556,3.17,2460.3,2459.8,0.3927]
[1726801888557,0.40642,2460.1,2459.8,0.3927]
[1726801888757,3.57644,2460.0,2459.7,0.40648]
[1726801889057,3.96735,2460.0,2459.6,0.4065]
[1726801889353,3.96735,2460.0,2459.5,3.2078]
[1726801889354,3.5609,2460.0,2459.7,0.40649]
[1726801890069,3.5609,2460.0,2459.8,0.40646]
[1726801890568,0.4067,2460.1,2459.9,0.40645]
[1726801890765,0.4064,2460.3,2460.0,0.40644]
[1726801890766,0.4176,2460.3,2460.0,0.40644]
[1726801891159,0.4176,2460.3,2459.9,0.8121]
[1726801891359,0.4176,2460.3,2460.1,0.40642]
[1726801891857,0.4176,2460.3,2460.0,0.40643]
[1726801892060,0.4176,2460.3,2460.1,3.2078]
[1726801892261,0.4176,2460.3,2460.1,3.61421]
[1726801892458,0.4176,2460.3,2460.2,0.40641]
[1726801894968,0.4176,2460.3,2460.1,3.2078]
[1726801895168,0.4176,2460.3,2460.2,0.40641]
[1726801895472,0.4176,2460.3,2460.1,3.61421]
[1726801895665,0.4176,2460.3,2460.2,0.40641]
[1726801897367,0.79406,2460.5,2460.2,0.40641]
[1726801897368,0.3877,2460.5,2460.2,0.40641]
[1726801897575,3.57635,2460.6,2460.3,0.40638]
[1726801897576,3.97825,2460.6,2460.3,0.40638]
[1726801897771,0.4019,2460.6,2460.4,0.40636]
[1726801897971,0.4019,2460.6,2460.5,0.40636]
[1726801898164,0.4019,2460.6,2460.4,0.40636]
[1726801898469,0.4019,2460.6,2460.5,0.40636]
[1726801898663,0.4019,2460.6,2460.1,3.2078]
[1726801898664,0.4019,2460.6,2460.4,0.40636]
[1726801903277,0.4019,2460.6,2460.4,0.40637]
[1726801906575,0.4019,2460.6,2460.5,0.40636]
[1726801906881,0.4019,2460.6,2460.4,0.79367]
[1726801907279,4.121,2461.6,2460.5,8.6847621]
[1726801907577,4.121,2461.6,2460.9,3.17]
[1726801907578,0.4074,2461.5,2460.9,3.17]
[1726801907780,0.4074,2461.5,2461.0,1.1828]
[1726801908082,0.4074,2461.5,2461.1,3.61405]
[1726801908270,3.714,2462.0,2461.1,6.3778]